[Event "Rapid Tournament (RAP)"]
[Site "Biel, Switzerland"]
[Date "2026.07.12"]
[Round "9.52"]
[White "Surdez, Patrick"]
[Black "Berger, Vincent"]
[Result "1/2-1/2"]
[TimeControl "15 + 5"]
[WhiteTitle "-"]
[BlackTitle "-"]
[WhiteFideId "1380206"]
[BlackFideId "1317822"]
[WhiteElo "1695"]
[BlackElo "1877"]

1. c4 {[%clk 00:15:01]} {[%emt 00:00:07]} e6 {[%clk 00:14:57]} {[%emt
00:00:13]} 2. g3 {[%clk 00:15:01]} {[%emt 00:00:05]} Nf6 {[%clk 00:14:55]}
{[%emt 00:00:07]} 3. Bg2 {[%clk 00:14:53]} {[%emt 00:00:13]} d5 {[%clk
00:14:54]} {[%emt 00:00:06]} 4. d4 {[%clk 00:14:26]} {[%emt 00:00:31]} Be7
{[%clk 00:14:42]} {[%emt 00:00:17]} 5. Qc2 {[%clk 00:14:11]} {[%emt 00:00:21]}
O-O {[%clk 00:14:33]} {[%emt 00:00:14]} 6. Nf3 {[%clk 00:13:32]} {[%emt
00:00:44]} dxc4 {[%clk 00:11:53]} {[%emt 00:02:45]} 7. Qxc4 {[%clk 00:13:20]}
{[%emt 00:00:17]} Nbd7 {[%clk 00:11:52]} {[%emt 00:00:05]} 8. O-O {[%clk
00:13:06]} {[%emt 00:00:20]} c5 {[%clk 00:11:28]} {[%emt 00:00:30]} 9. dxc5
{[%clk 00:12:25]} {[%emt 00:00:45]} Bxc5 {[%clk 00:11:09]} {[%emt 00:00:24]} 10.
Bg5 {[%clk 00:10:48]} {[%emt 00:01:40]} h6 {[%clk 00:09:28]} {[%emt 00:01:47]}
11. Bd2 {[%clk 00:10:27]} {[%emt 00:00:27]} Qe7 {[%clk 00:09:24]} {[%emt
00:00:09]} 12. Nc3 {[%clk 00:09:55]} {[%emt 00:00:36]} a6 {[%clk 00:09:23]}
{[%emt 00:00:07]} 13. Rfd1 {[%clk 00:09:34]} {[%emt 00:00:26]} b5 {[%clk
00:08:28]} {[%emt 00:00:59]} 14. Qh4 {[%clk 00:09:23]} {[%emt 00:00:16]} Bb7
{[%clk 00:08:02]} {[%emt 00:00:32]} 15. Rac1 {[%clk 00:08:35]} {[%emt
00:00:53]} Rac8 {[%clk 00:06:20]} {[%emt 00:01:47]} 16. e4 {[%clk 00:07:41]}
{[%emt 00:00:59]} Rfe8 {[%clk 00:04:51]} {[%emt 00:01:32]} 17. e5 {[%clk
00:06:55]} {[%emt 00:00:53]} Nd5 {[%clk 00:04:34]} {[%emt 00:00:22]} 18. Qxe7
{[%clk 00:06:31]} {[%emt 00:00:30]} Bxe7 {[%clk 00:04:24]} {[%emt 00:00:14]} 19.
Ne4 {[%clk 00:06:17]} {[%emt 00:00:19]} N7b6 {[%clk 00:04:10]} {[%emt
00:00:18]} 20. Nd6 {[%clk 00:05:28]} {[%emt 00:00:54]} Bxd6 {[%clk 00:03:58]}
{[%emt 00:00:18]} 21. exd6 {[%clk 00:05:11]} {[%emt 00:00:22]} Rxc1 {[%clk
00:03:49]} {[%emt 00:00:13]} 22. Rxc1 {[%clk 00:05:02]} {[%emt 00:00:15]} Nc4
{[%clk 00:03:28]} {[%emt 00:00:26]} 23. b3 {[%clk 00:03:52]} {[%emt 00:01:15]}
Nxd6 {[%clk 00:03:21]} {[%emt 00:00:11]} 24. Ne5 {[%clk 00:03:42]} {[%emt
00:00:15]} Rc8 {[%clk 00:02:40]} {[%emt 00:00:47]} 25. Rxc8+ {[%clk 00:03:07]}
{[%emt 00:00:39]} Nxc8 {[%clk 00:02:35]} {[%emt 00:00:10]} 26. Nd7 {[%clk
00:02:54]} {[%emt 00:00:18]} f6 {[%clk 00:02:16]} {[%emt 00:00:24]} 27. Nc5
{[%clk 00:02:55]} {[%emt 00:00:04]} Nd6 {[%clk 00:01:48]} {[%emt 00:00:34]} 28.
Nxe6 {[%clk 00:02:48]} {[%emt 00:00:12]} Ne7 {[%clk 00:00:56]} {[%emt
00:00:57]} 29. Nc5 {[%clk 00:02:29]} {[%emt 00:00:24]} Bc8 {[%clk 00:00:59]}
{[%emt 00:00:02]} 30. Kf1 {[%clk 00:02:23]} {[%emt 00:00:11]} Kf7 {[%clk
00:01:01]} {[%emt 00:00:03]} 31. Ke2 {[%clk 00:02:16]} {[%emt 00:00:12]} Ng6
{[%clk 00:00:57]} {[%emt 00:00:08]} 32. f4 {[%clk 00:02:09]} {[%emt 00:00:12]}
Ne7 {[%clk 00:00:57]} {[%emt 00:00:06]} 33. Kd3 {[%clk 00:01:55]} {[%emt
00:00:19]} Nef5 {[%clk 00:00:46]} {[%emt 00:00:17]} 34. Bd5+ {[%clk 00:01:50]}
{[%emt 00:00:09]} Ke7 {[%clk 00:00:44]} {[%emt 00:00:06]} 35. g4 {[%clk
00:01:34]} {[%emt 00:00:21]} Nh4 {[%clk 00:00:44]} {[%emt 00:00:05]} 36. Be1
{[%clk 00:01:31]} {[%emt 00:00:09]} Ng6 {[%clk 00:00:47]} {[%emt 00:00:02]} 37.
Bd2 {[%clk 00:01:03]} {[%emt 00:00:32]} 1/2-1/2

[Event "Rapid Tournament (RAP)"]
[Site "Biel, Switzerland"]
[Date "2026.07.12"]
[Round "9.53"]
[White "Jaussi, Kevin"]
[Black "Jaggy, Enzo"]
[Result "1/2-1/2"]
[TimeControl "15 + 5"]
[WhiteTitle "-"]
[BlackTitle "-"]
[WhiteFideId "1324721"]
[BlackFideId "1344919"]
[WhiteElo "1859"]
[BlackElo "1682"]

1. d4 {[%clk 00:15:06]} {[%emt 00:00:04]} d5 {[%clk 00:15:09]} 2. Bf4 {[%clk
00:15:10]} Nf6 {[%clk 00:15:13]} {[%emt 00:00:01]} 3. e3 {[%clk 00:15:14]} c5
{[%clk 00:15:17]} {[%emt 00:00:02]} 4. Nc3 {[%clk 00:15:15]} {[%emt 00:00:04]}
a6 {[%clk 00:15:14]} {[%emt 00:00:09]} 5. Nf3 {[%clk 00:15:14]} {[%emt
00:00:04]} Bg4 {[%clk 00:15:09]} {[%emt 00:00:10]} 6. h3 {[%clk 00:15:15]}
{[%emt 00:00:04]} Bxf3 {[%clk 00:15:12]} {[%emt 00:00:03]} 7. Qxf3 {[%clk
00:15:18]} {[%emt 00:00:02]} e6 {[%clk 00:15:15]} {[%emt 00:00:02]} 8. g4
{[%clk 00:14:43]} {[%emt 00:00:39]} cxd4 {[%clk 00:15:06]} {[%emt 00:00:15]} 9.
exd4 {[%clk 00:14:41]} {[%emt 00:00:07]} Nc6 {[%clk 00:15:03]} {[%emt
00:00:08]} 10. Be5 {[%clk 00:14:36]} {[%emt 00:00:10]} Nxe5 {[%clk 00:14:57]}
{[%emt 00:00:11]} 11. dxe5 {[%clk 00:14:40]} {[%emt 00:00:02]} Nd7 {[%clk
00:14:59]} {[%emt 00:00:02]} 12. Qe3 {[%clk 00:14:36]} {[%emt 00:00:09]} Bc5
{[%clk 00:14:57]} {[%emt 00:00:07]} 13. Qe2 {[%clk 00:14:24]} {[%emt 00:00:16]}
Qh4 {[%clk 00:14:18]} {[%emt 00:00:45]} 14. Rh2 {[%clk 00:13:55]} {[%emt
00:00:33]} Bd4 {[%clk 00:13:40]} {[%emt 00:00:43]} 15. O-O-O {[%clk 00:13:14]}
{[%emt 00:00:46]} Qg5+ {[%clk 00:13:09]} {[%emt 00:00:36]} 16. Kb1 {[%clk
00:13:08]} {[%emt 00:00:12]} Qxe5 {[%clk 00:13:12]} {[%emt 00:00:02]} 17. f3
{[%clk 00:12:18]} {[%emt 00:00:56]} Bxc3 {[%clk 00:13:06]} {[%emt 00:00:10]} 18.
bxc3 {[%clk 00:12:21]} {[%emt 00:00:02]} Qxe2 {[%clk 00:13:07]} {[%emt
00:00:04]} 19. Rxe2 {[%clk 00:12:23]} {[%emt 00:00:02]} O-O {[%clk 00:13:08]}
{[%emt 00:00:05]} 20. c4 {[%clk 00:12:26]} {[%emt 00:00:02]} Nb6 {[%clk
00:13:04]} {[%emt 00:00:09]} 21. c5 {[%clk 00:12:16]} {[%emt 00:00:14]} Na4
{[%clk 00:12:58]} {[%emt 00:00:12]} 22. Rd3 {[%clk 00:11:27]} {[%emt 00:00:54]}
Nxc5 {[%clk 00:13:02]} {[%emt 00:00:02]} 23. Rde3 {[%clk 00:11:04]} {[%emt
00:00:27]} Rac8 {[%clk 00:12:41]} {[%emt 00:00:26]} 24. Rd2 {[%clk 00:10:51]}
{[%emt 00:00:17]} Rc7 {[%clk 00:12:33]} {[%emt 00:00:14]} 25. Bg2 {[%clk
00:10:38]} {[%emt 00:00:17]} Nd7 {[%clk 00:11:36]} {[%emt 00:01:04]} 26. f4
{[%clk 00:10:31]} {[%emt 00:00:11]} Nb6 {[%clk 00:11:40]} {[%emt 00:00:02]} 27.
Rb3 {[%clk 00:10:01]} {[%emt 00:00:34]} Nc4 {[%clk 00:11:30]} {[%emt 00:00:16]}
28. Re2 {[%clk 00:09:26]} {[%emt 00:00:38]} a5 {[%clk 00:11:33]} {[%emt
00:00:03]} 29. f5 {[%clk 00:09:14]} {[%emt 00:00:16]} a4 {[%clk 00:11:38]}
{[%emt 00:00:01]} 30. Rb4 {[%clk 00:09:04]} {[%emt 00:00:15]} Re8 {[%clk
00:10:16]} {[%emt 00:01:27]} 31. Bxd5 {[%clk 00:08:41]} {[%emt 00:00:28]} Na3+
{[%clk 00:09:12]} {[%emt 00:01:09]} 32. Kb2 {[%clk 00:07:19]} {[%emt 00:01:27]}
Rxc2+ {[%clk 00:09:07]} {[%emt 00:00:10]} 33. Rxc2 {[%clk 00:07:16]} {[%emt
00:00:07]} Nxc2 {[%clk 00:09:11]} {[%emt 00:00:02]} 34. fxe6 {[%clk 00:05:13]}
{[%emt 00:02:08]} fxe6 {[%clk 00:08:08]} {[%emt 00:01:08]} 35. Rxa4 {[%clk
00:04:19]} {[%emt 00:00:59]} exd5 {[%clk 00:08:06]} {[%emt 00:00:07]} 36. Kxc2
{[%clk 00:04:22]} {[%emt 00:00:02]} Re3 {[%clk 00:07:49]} {[%emt 00:00:21]} 37.
h4 {[%clk 00:04:26]} {[%emt 00:00:02]} Kf7 {[%clk 00:07:46]} {[%emt 00:00:08]}
38. Kd2 {[%clk 00:04:07]} {[%emt 00:00:23]} Rh3 {[%clk 00:07:48]} {[%emt
00:00:03]} 39. g5 {[%clk 00:03:47]} {[%emt 00:00:25]} Kg6 {[%clk 00:07:36]}
{[%emt 00:00:18]} 40. Rd4 {[%clk 00:03:29]} {[%emt 00:00:22]} Rh2+ {[%clk
00:07:37]} {[%emt 00:00:04]} 41. Ke3 {[%clk 00:03:28]} {[%emt 00:00:06]} Rxa2
{[%clk 00:07:40]} {[%emt 00:00:03]} 42. Rxd5 {[%clk 00:03:32]} Ra4 {[%clk
00:07:41]} {[%emt 00:00:04]} 43. Rb5 {[%clk 00:03:28]} {[%emt 00:00:08]} Rxh4
{[%clk 00:07:44]} {[%emt 00:00:03]} 44. Rxb7 {[%clk 00:03:32]} {[%emt
00:00:01]} Rg4 {[%clk 00:07:45]} {[%emt 00:00:04]} 45. Kf3 {[%clk 00:03:32]}
{[%emt 00:00:05]} Rxg5 {[%clk 00:07:48]} {[%emt 00:00:02]} 46. Rb6+ {[%clk
00:03:35]} {[%emt 00:00:02]} Kh5 {[%clk 00:07:49]} {[%emt 00:00:04]} 47. Rb4
{[%clk 00:03:24]} {[%emt 00:00:16]} g6 {[%clk 00:07:50]} {[%emt 00:00:04]} 48.
Rb7 {[%clk 00:03:09]} {[%emt 00:00:20]} Rf5+ {[%clk 00:07:52]} {[%emt
00:00:03]} 49. Kg3 {[%clk 00:03:11]} {[%emt 00:00:03]} h6 {[%clk 00:07:55]}
{[%emt 00:00:02]} 50. Rb1 {[%clk 00:03:11]} {[%emt 00:00:05]} Kg5 {[%clk
00:07:58]} {[%emt 00:00:01]} 51. Rb3 {[%clk 00:02:57]} {[%emt 00:00:19]} h5
{[%clk 00:08:00]} {[%emt 00:00:03]} 52. Rb6 {[%clk 00:02:50]} {[%emt 00:00:12]}
h4+ {[%clk 00:08:02]} {[%emt 00:00:04]} 53. Kh2 {[%clk 00:02:52]} {[%emt
00:00:03]} Kh5 {[%clk 00:08:02]} {[%emt 00:00:05]} 54. Rb8 {[%clk 00:02:51]}
{[%emt 00:00:05]} Kg4 {[%clk 00:08:03]} {[%emt 00:00:04]} 55. Rb2 {[%clk
00:02:15]} {[%emt 00:00:41]} g5 {[%clk 00:08:05]} {[%emt 00:00:04]} 56. Kg2
{[%clk 00:02:14]} {[%emt 00:00:06]} h3+ {[%clk 00:08:07]} {[%emt 00:00:03]} 57.
Kh2 {[%clk 00:02:17]} {[%emt 00:00:01]} Kh4 {[%clk 00:08:10]} {[%emt 00:00:02]}
58. Kg1 {[%clk 00:02:08]} {[%emt 00:00:14]} g4 {[%clk 00:08:13]} {[%emt
00:00:03]} 59. Rb4 {[%clk 00:02:10]} {[%emt 00:00:03]} Rf3 {[%clk 00:08:16]}
{[%emt 00:00:02]} 60. Rc4 {[%clk 00:02:08]} {[%emt 00:00:07]} Kg3 {[%clk
00:08:20]} {[%emt 00:00:01]} 61. Rc1 {[%clk 00:02:08]} {[%emt 00:00:05]} h2+
{[%clk 00:08:19]} {[%emt 00:00:06]} 62. Kh1 {[%clk 00:02:12]} {[%emt 00:00:01]}
Rf2 {[%clk 00:07:45]} {[%emt 00:00:39]} 63. Rc3+ {[%clk 00:02:08]} {[%emt
00:00:09]} Kf4 {[%clk 00:07:43]} {[%emt 00:00:07]} 64. Rc4+ {[%clk 00:02:08]}
{[%emt 00:00:05]} Kf3 {[%clk 00:07:40]} {[%emt 00:00:08]} 65. Rc3+ {[%clk
00:02:06]} {[%emt 00:00:07]} Ke2 {[%clk 00:07:42]} {[%emt 00:00:02]} 66. Rc2+
{[%clk 00:02:09]} {[%emt 00:00:03]} Kf3 {[%clk 00:07:17]} {[%emt 00:00:29]} 67.
Rc3+ {[%clk 00:02:12]} {[%emt 00:00:02]} Kf4 {[%clk 00:07:12]} {[%emt
00:00:10]} 68. Rc4+ {[%clk 00:02:16]} {[%emt 00:00:02]} Kg5 {[%clk 00:07:15]}
{[%emt 00:00:02]} 69. Rxg4+ {[%clk 00:02:19]} {[%emt 00:00:02]} Kf5 {[%clk
00:07:14]} {[%emt 00:00:05]} 70. Rg8 {[%clk 00:02:22]} {[%emt 00:00:02]} Ke4
{[%clk 00:07:16]} {[%emt 00:00:04]} 71. Re8+ {[%clk 00:02:24]} {[%emt
00:00:02]} Kd3 {[%clk 00:07:17]} {[%emt 00:00:05]} 72. Rd8+ {[%clk 00:02:28]}
{[%emt 00:00:01]} Ke2 {[%clk 00:07:21]} {[%emt 00:00:01]} 73. Re8+ {[%clk
00:02:31]} {[%emt 00:00:02]} Kf1 {[%clk 00:07:25]} {[%emt 00:00:01]} 74. Rh8
{[%clk 00:02:29]} {[%emt 00:00:06]} 1/2-1/2

[Event "Rapid Tournament (RAP)"]
[Site "Biel, Switzerland"]
[Date "2026.07.12"]
[Round "9.54"]
[White "Gaier, Walter"]
[Black "Gheorghiu, Gabriel-Ion"]
[Result "1/2-1/2"]
[TimeControl "15 + 5"]
[WhiteTitle "-"]
[BlackTitle "-"]
[WhiteFideId "1310186"]
[BlackFideId "1248820"]
[WhiteElo "1832"]
[BlackElo "1679"]

1. e4 {[%clk 00:15:08]} {[%emt 00:00:01]} d5 {[%clk 00:15:09]} {[%emt
00:00:03]} 2. Nf3 {[%clk 00:15:11]} dxe4 {[%clk 00:15:08]} {[%emt 00:00:07]} 3.
Ng5 {[%clk 00:15:13]} {[%emt 00:00:02]} Nf6 {[%clk 00:15:05]} {[%emt 00:00:07]}
4. Bc4 {[%clk 00:15:16]} {[%emt 00:00:02]} e6 {[%clk 00:15:01]} {[%emt
00:00:10]} 5. Nc3 {[%clk 00:15:19]} {[%emt 00:00:01]} Be7 {[%clk 00:14:43]}
{[%emt 00:00:24]} 6. O-O {[%clk 00:15:09]} {[%emt 00:00:14]} O-O {[%clk
00:14:44]} {[%emt 00:00:03]} 7. Ngxe4 {[%clk 00:14:50]} {[%emt 00:00:25]} Nbd7
{[%clk 00:14:34]} {[%emt 00:00:16]} 8. d4 {[%clk 00:14:36]} {[%emt 00:00:18]}
c6 {[%clk 00:13:46]} {[%emt 00:00:54]} 9. Bf4 {[%clk 00:13:28]} {[%emt
00:01:12]} Nb6 {[%clk 00:13:37]} {[%emt 00:00:15]} 10. Bb3 {[%clk 00:12:56]}
{[%emt 00:00:36]} Nbd5 {[%clk 00:13:37]} {[%emt 00:00:06]} 11. Be5 {[%clk
00:12:32]} {[%emt 00:00:29]} b5 {[%clk 00:12:25]} {[%emt 00:01:17]} 12. Qf3
{[%clk 00:11:57]} {[%emt 00:00:39]} a5 {[%clk 00:12:05]} {[%emt 00:00:26]} 13.
a3 {[%clk 00:11:37]} {[%emt 00:00:25]} Bb7 {[%clk 00:11:56]} {[%emt 00:00:14]}
14. Rad1 {[%clk 00:09:34]} {[%emt 00:02:08]} b4 {[%clk 00:09:16]} {[%emt
00:02:45]} 15. axb4 {[%clk 00:09:19]} {[%emt 00:00:20]} axb4 {[%clk 00:09:19]}
{[%emt 00:00:01]} 16. Nxd5 {[%clk 00:08:15]} {[%emt 00:01:10]} cxd5 {[%clk
00:09:19]} {[%emt 00:00:04]} 17. Nxf6+ {[%clk 00:07:51]} {[%emt 00:00:28]} Bxf6
{[%clk 00:09:21]} {[%emt 00:00:04]} 18. Bxf6 {[%clk 00:06:19]} {[%emt
00:01:37]} Qxf6 {[%clk 00:09:25]} {[%emt 00:00:02]} 19. Qxf6 {[%clk 00:06:19]}
{[%emt 00:00:04]} gxf6 {[%clk 00:09:28]} {[%emt 00:00:02]} 20. f4 {[%clk
00:06:15]} {[%emt 00:00:08]} f5 {[%emt 00:00:07]} 21. Ra1 {[%emt 00:01:17]}
Rfc8 {[%clk 00:07:56]} {[%emt 00:00:14]} 22. Rfc1 {[%clk 00:05:09]} {[%emt
00:01:11]} Kf8 {[%clk 00:07:51]} {[%emt 00:00:10]} 23. Kf2 {[%clk 00:04:46]}
{[%emt 00:00:28]} Ke7 {[%clk 00:07:34]} {[%emt 00:00:23]} 24. Ra4 {[%clk
00:04:24]} {[%emt 00:00:26]} Rxa4 {[%clk 00:07:34]} {[%emt 00:00:05]} 25. Bxa4
{[%clk 00:04:28]} {[%emt 00:00:02]} Ba6 {[%clk 00:07:27]} {[%emt 00:00:11]} 26.
Ke3 {[%clk 00:04:12]} {[%emt 00:00:21]} Kd6 {[%clk 00:07:05]} {[%emt 00:00:27]}
27. Ra1 {[%clk 00:03:25]} {[%emt 00:00:52]} Rb8 {[%clk 00:05:32]} {[%emt
00:01:38]} 28. Be8 {[%clk 00:02:47]} {[%emt 00:00:43]} Ke7 {[%clk 00:04:57]}
{[%emt 00:00:40]} 29. Bxf7 {[%clk 00:02:32]} {[%emt 00:00:20]} Kxf7 {[%clk
00:04:57]} {[%emt 00:00:06]} 30. Rxa6 {[%clk 00:02:35]} {[%emt 00:00:01]} h5
{[%clk 00:04:51]} {[%emt 00:00:11]} 31. g3 {[%clk 00:02:04]} {[%emt 00:00:37]}
Kf6 {[%clk 00:03:59]} {[%emt 00:00:56]} 32. Rc6 {[%clk 00:01:24]} {[%emt
00:00:45]} Rb7 {[%clk 00:03:38]} {[%emt 00:00:27]} 33. Rc8 {[%clk 00:01:24]}
{[%emt 00:00:04]} Rb6 {[%clk 00:03:22]} {[%emt 00:00:22]} 34. Kf3 {[%clk
00:01:14]} {[%emt 00:00:15]} b3 {[%clk 00:03:10]} {[%emt 00:00:17]} 35. c3
{[%clk 00:01:01]} {[%emt 00:00:18]} Rb5 {[%clk 00:03:12]} {[%emt 00:00:02]} 36.
Rc6 {[%clk 00:00:41]} {[%emt 00:00:25]} Rb7 {[%clk 00:03:05]} {[%emt 00:00:12]}
37. Kg2 {[%clk 00:00:42]} {[%emt 00:00:04]} Rb8 {[%clk 00:02:58]} {[%emt
00:00:12]} 38. Kh3 {[%clk 00:00:43]} {[%emt 00:00:03]} Rb7 {[%emt 00:00:12]} 39.
Kh4 {[%emt 00:00:08]} Rb8 {[%clk 00:02:39]} {[%emt 00:00:05]} 40. Rc7 {[%clk
00:00:41]} {[%emt 00:00:07]} Kg6 {[%clk 00:02:34]} {[%emt 00:00:09]} 41. Re7
{[%clk 00:00:42]} {[%emt 00:00:06]} Kf6 {[%clk 00:02:37]} {[%emt 00:00:02]} 42.
Rh7 {[%clk 00:00:42]} {[%emt 00:00:04]} Kg6 {[%clk 00:02:31]} {[%emt 00:00:12]}
43. Rc7 {[%clk 00:00:20]} {[%emt 00:00:26]} Kf6 {[%clk 00:02:32]} {[%emt
00:00:04]} 44. Rh7 {[%clk 00:00:17]} {[%emt 00:00:09]} Kg6 {[%clk 00:02:36]}
{[%emt 00:00:01]} 45. Ra7 {[%emt 00:00:22]} Kf6 {[%emt 00:00:22]} 46. Ra4 Rg8
{[%emt 00:00:07]} 47. Rb4 {[%emt 00:00:10]} Rb8 {[%emt 00:00:01]} 1/2-1/2